[Event "*** Titled Tuesday Blitz"]
[Site "Chess.com"]
[Date "2021.03.02"]
[Round "8"]
[White "lamomiablanca"]
[Black "superchess02"]
[Result "0-1"]
[WhiteElo "2375"]
[BlackElo "2774"]
[TimeControl "180+1"]
[EndTime "11:28:25 PST"]
[Termination "superchess02 won by checkmate"]

1. e4 {[%clk 0:03:00.9]} 1... c5 {[%clk 0:03:00.9]} 2. d3 {[%clk 0:02:58.9]}
2... d6 {[%clk 0:03:01.8]} 3. g3 {[%clk 0:02:56.6]} 3... Nf6 {[%clk 0:03:02.7]}
4. Bg2 {[%clk 0:02:56.2]} 4... g6 {[%clk 0:03:03.6]} 5. f4 {[%clk 0:02:56]} 5...
Bg7 {[%clk 0:03:04.5]} 6. Nf3 {[%clk 0:02:55.9]} 6... O-O {[%clk 0:03:04.9]} 7.
O-O {[%clk 0:02:55.5]} 7... Nc6 {[%clk 0:03:05.8]} 8. c3 {[%clk 0:02:53.7]} 8...
Rb8 {[%clk 0:03:06]} 9. a4 {[%clk 0:02:47.8]} 9... c4 {[%clk 0:03:05.9]} 10. Re1
{[%clk 0:02:36]} 10... cxd3 {[%clk 0:03:02.9]} 11. Qxd3 {[%clk 0:02:35]} 11...
Nd7 {[%clk 0:03:02.5]} 12. Qc2 {[%clk 0:02:30.5]} 12... b5 {[%clk 0:02:59.9]}
13. axb5 {[%clk 0:02:27.6]} 13... Rxb5 {[%clk 0:03:00.8]} 14. Be3 {[%clk
0:02:22.4]} 14... a5 {[%clk 0:02:57.3]} 15. Nbd2 {[%clk 0:02:21.6]} 15... Qc7
{[%clk 0:02:56]} 16. Rec1 {[%clk 0:02:07.6]} 16... Qb8 {[%clk 0:02:48.2]} 17.
Ra2 {[%clk 0:02:04.9]} 17... Nc5 {[%clk 0:02:43.9]} 18. Rb1 {[%clk 0:01:38.3]}
18... Be6 {[%clk 0:02:42]} 19. Raa1 {[%clk 0:01:38.5]} 19... Rc8 {[%clk
0:02:39]} 20. Bf1 {[%clk 0:01:36.6]} 20... Rb7 {[%clk 0:02:35.3]} 21. Bxc5
{[%clk 0:01:36.1]} 21... dxc5 {[%clk 0:02:35]} 22. Bc4 {[%clk 0:01:34.5]} 22...
Bxc4 {[%clk 0:02:25.5]} 23. Nxc4 {[%clk 0:01:34.1]} 23... Qa7 {[%clk 0:02:25.2]}
24. e5 {[%clk 0:01:29]} 24... Qa6 {[%clk 0:02:19.9]} 25. Qe4 {[%clk 0:01:26.3]}
25... Rcb8 {[%clk 0:02:15.4]} 26. Ng5 {[%clk 0:01:12.1]} 26... h6 {[%clk
0:02:14.5]} 27. Nf3 {[%clk 0:01:09.6]} 27... Nd4 {[%clk 0:02:06.1]} 28. Nfd2
{[%clk 0:01:00.6]} 28... Nb3 {[%clk 0:01:51.3]} 29. Nxb3 {[%clk 0:00:55.6]}
29... Rxb3 {[%clk 0:01:52.2]} 30. Rxa5 {[%clk 0:00:39.1]} 30... Qc8 {[%clk
0:01:52.6]} 31. e6 {[%clk 0:00:34.4]} 31... f5 {[%clk 0:01:49.9]} 32. Qd5 {[%clk
0:00:26.7]} 32... Bxc3 {[%clk 0:01:48.8]} 33. Rxc5 {[%clk 0:00:25.2]} 33... Qd8
{[%clk 0:01:49]} 34. Qxd8+ {[%clk 0:00:20.1]} 34... Rxd8 {[%clk 0:01:49.9]} 35.
Rc6 {[%clk 0:00:19.8]} 35... Kg7 {[%clk 0:01:48.5]} 36. Kg2 {[%clk 0:00:17.4]}
36... Kf6 {[%clk 0:01:48]} 37. Rb6 {[%clk 0:00:17.1]} 37... Rxb6 {[%clk
0:01:46.8]} 38. Nxb6 {[%clk 0:00:18]} 38... Rd2+ {[%clk 0:01:47.1]} 39. Kf3
{[%clk 0:00:15.4]} 39... Bd4 {[%clk 0:01:43.7]} 40. b4 {[%clk 0:00:12.7]} 40...
Rf2# {[%clk 0:01:42.9]} 0-1

[Event "*** Titled Tuesday Blitz"]
[Site "Chess.com"]
[Date "2021.03.02"]
[Round "8"]
[White "Unknown_IM"]
[Black "Nikolaj_6"]
[Result "1-0"]
[WhiteElo "2384"]
[BlackElo "2660"]
[TimeControl "180+1"]
[EndTime "11:28:25 PST"]
[Termination "Unknown_IM won by resignation"]

1. e4 {[%clk 0:03:00.9]} 1... c5 {[%clk 0:02:57.4]} 2. Nf3 {[%clk 0:02:56.3]}
2... d6 {[%clk 0:02:57.5]} 3. c3 {[%clk 0:02:54.8]} 3... Nf6 {[%clk 0:02:56.4]}
4. Be2 {[%clk 0:02:55.1]} 4... Bd7 {[%clk 0:02:56.3]} 5. Qc2 {[%clk 0:02:53.7]}
5... Qc7 {[%clk 0:02:54.8]} 6. O-O {[%clk 0:02:52.5]} 6... g6 {[%clk 0:02:54.4]}
7. Bd1 {[%clk 0:02:52]} 7... Bc6 {[%clk 0:02:47.9]} 8. Re1 {[%clk 0:02:50.6]}
8... c4 {[%clk 0:02:21.8]} 9. d4 {[%clk 0:02:44.4]} 9... cxd3 {[%clk 0:02:20.8]}
10. Qxd3 {[%clk 0:02:43.8]} 10... Nbd7 {[%clk 0:02:19.1]} 11. b4 {[%clk
0:02:35.2]} 11... b6 {[%clk 0:02:08.8]} 12. Bb3 {[%clk 0:02:27.5]} 12... Bg7
{[%clk 0:02:08.2]} 13. Bxf7+ {[%clk 0:02:18.7]} 13... Kxf7 {[%clk 0:02:07.1]}
14. Ng5+ {[%clk 0:02:19.2]} 14... Kg8 {[%clk 0:01:53.5]} 15. Qc4+ {[%clk
0:02:14.9]} 15... d5 {[%clk 0:01:53.7]} 16. exd5 {[%clk 0:02:14.9]} 16... b5
{[%clk 0:01:44.3]} 17. Qxc6 {[%clk 0:02:13.5]} 17... Qxc6 {[%clk 0:01:40]} 18.
dxc6 {[%clk 0:02:14.4]} 18... Nb6 {[%clk 0:01:40.2]} 19. Ne6 {[%clk 0:02:11.8]}
19... Nfd5 {[%clk 0:01:37.3]} 20. Nxg7 {[%clk 0:02:11.3]} 20... Kxg7 {[%clk
0:01:38.2]} 21. Be3 {[%clk 0:02:08.3]} 21... Nxe3 {[%clk 0:01:36.6]} 22. Rxe3
{[%clk 0:02:09.2]} 22... Kf7 {[%clk 0:01:33]} 23. Na3 {[%clk 0:02:08]} 23... a6
{[%clk 0:01:32]} 24. Rae1 {[%clk 0:02:05.5]} 24... Ra7 {[%clk 0:01:32.3]} 25.
Nc2 {[%clk 0:02:05.3]} 25... Nd5 {[%clk 0:01:32.2]} 26. Rf3+ {[%clk 0:02:04.8]}
26... Kg7 {[%clk 0:01:31.5]} 27. Nd4 {[%clk 0:02:03.5]} 27... Rc8 {[%clk
0:01:31.1]} 28. Re6 {[%clk 0:01:49.1]} 28... Rb8 {[%clk 0:01:20.1]} 29. g3
{[%clk 0:01:44.2]} 29... a5 {[%clk 0:01:20.3]} 30. a3 {[%clk 0:01:42.8]} 30...
axb4 {[%clk 0:01:20.1]} 31. axb4 {[%clk 0:01:43.7]} 31... Ra3 {[%clk 0:01:15.7]}
32. Re5 {[%clk 0:01:40.1]} 32... Nxc3 {[%clk 0:01:04.3]} 33. Ne6+ {[%clk
0:01:38.1]} 33... Kg8 {[%clk 0:01:00.9]} 34. c7 {[%clk 0:01:36.4]} 34... Rc8
{[%clk 0:00:59.2]} 35. Kg2 {[%clk 0:01:33.3]} 35... Nb1 {[%clk 0:00:56]} 36.
Rf8+ {[%clk 0:01:17.1]} 36... Rxf8 {[%clk 0:00:53.6]} 37. Nxf8 {[%clk 0:01:18]}
37... Rc3 {[%clk 0:00:52.4]} 38. Ne6 {[%clk 0:01:14.7]} 38... Kf7 {[%clk
0:00:48.3]} 39. Rc5 {[%clk 0:01:11.7]} 1-0

[Event "*** Titled Tuesday Blitz"]
[Site "Chess.com"]
[Date "2021.03.02"]
[Round "8"]
[White "delphin11"]
[Black "chesslh19"]
[Result "1-0"]
[WhiteElo "2578"]
[BlackElo "2241"]
[TimeControl "180+1"]
[EndTime "11:28:26 PST"]
[Termination "delphin11 won by resignation"]

1. Nf3 {[%clk 0:03:00.9]} 1... d5 {[%clk 0:02:56.4]} 2. g3 {[%clk 0:02:58.6]}
2... Bg4 {[%clk 0:02:55.5]} 3. Bg2 {[%clk 0:02:57.8]} 3... Nd7 {[%clk
0:02:54.7]} 4. c4 {[%clk 0:02:57.2]} 4... e6 {[%clk 0:02:54.5]} 5. cxd5 {[%clk
0:02:51.4]} 5... exd5 {[%clk 0:02:54.7]} 6. O-O {[%clk 0:02:50.9]} 6... Ngf6
{[%clk 0:02:51.4]} 7. d3 {[%clk 0:02:50.4]} 7... Bd6 {[%clk 0:02:45.5]} 8. Nc3
{[%clk 0:02:50.1]} 8... c6 {[%clk 0:02:45.7]} 9. e4 {[%clk 0:02:49.3]} 9... dxe4
{[%clk 0:02:07.2]} 10. dxe4 {[%clk 0:02:48.7]} 10... Ne5 {[%clk 0:01:44.2]} 11.
Bf4 {[%clk 0:02:47.6]} 11... Nxf3+ {[%clk 0:01:42.4]} 12. Bxf3 {[%clk
0:02:47.8]} 12... Bxf4 {[%clk 0:01:33.5]} 13. Bxg4 {[%clk 0:02:44.9]} 13... Bc7
{[%clk 0:01:10.7]} 14. Bf3 {[%clk 0:02:32]} 14... Qxd1 {[%clk 0:01:07.7]} 15.
Raxd1 {[%clk 0:02:31.2]} 15... O-O {[%clk 0:00:59.9]} 16. Bg2 {[%clk 0:02:26.5]}
16... Rad8 {[%clk 0:00:57.5]} 17. f4 {[%clk 0:02:26.4]} 17... Bb6+ {[%clk
0:00:56]} 18. Kh1 {[%clk 0:02:25.8]} 18... Ng4 {[%clk 0:00:50.8]} 19. Rxd8
{[%clk 0:02:24.3]} 19... Rxd8 {[%clk 0:00:50.1]} 20. h3 {[%clk 0:02:21.8]} 20...
Ne3 {[%clk 0:00:47.3]} 21. Re1 {[%clk 0:02:21.3]} 21... Nxg2 {[%clk 0:00:44.4]}
22. Kxg2 {[%clk 0:02:20.9]} 22... Rd2+ {[%clk 0:00:41.6]} 23. Re2 {[%clk
0:02:20.5]} 23... Rxe2+ {[%clk 0:00:42.1]} 24. Nxe2 {[%clk 0:02:20.2]} 24... Kf8
{[%clk 0:00:42.4]} 25. Kf3 {[%clk 0:02:19.5]} 25... Ke7 {[%clk 0:00:42.8]} 26.
e5 {[%clk 0:02:18.9]} 26... f6 {[%clk 0:00:40.2]} 27. Ke4 {[%clk 0:02:17.3]}
27... fxe5 {[%clk 0:00:39.7]} 28. fxe5 {[%clk 0:02:13.7]} 28... Bc7 {[%clk
0:00:34.2]} 29. g4 {[%clk 0:02:10.1]} 29... b6 {[%clk 0:00:26.3]} 30. Nd4 {[%clk
0:02:08.7]} 30... c5 {[%clk 0:00:20.6]} 31. Nf5+ {[%clk 0:02:05.2]} 31... Kf7
{[%clk 0:00:19.6]} 32. Kd5 {[%clk 0:02:04.9]} 32... g6 {[%clk 0:00:19.1]} 33.
Nd6+ {[%clk 0:01:59.6]} 33... Ke7 {[%clk 0:00:16.2]} 34. Nc8+ {[%clk 0:01:57.9]}
34... Kd7 {[%clk 0:00:16.4]} 35. Nxa7 {[%clk 0:01:57.8]} 35... Bd8 {[%clk
0:00:15]} 36. e6+ {[%clk 0:01:52]} 36... Ke8 {[%clk 0:00:14.1]} 37. Nc8 {[%clk
0:01:49.1]} 37... Bf6 {[%clk 0:00:14]} 38. b3 {[%clk 0:01:47.2]} 38... Bd4
{[%clk 0:00:13.4]} 39. Nxb6 {[%clk 0:01:46.3]} 39... Ke7 {[%clk 0:00:12.5]} 40.
Nc8+ {[%clk 0:01:42]} 40... Kd8 {[%clk 0:00:12.2]} 41. Nd6 {[%clk 0:01:41.9]}
1-0

[Event "*** Titled Tuesday Blitz"]
[Site "Chess.com"]
[Date "2021.03.02"]
[Round "8"]
[White "Jan1401"]
[Black "Michaelson_11"]
[Result "0-1"]
[WhiteElo "2365"]
[BlackElo "2281"]
[TimeControl "180+1"]
[EndTime "11:28:28 PST"]
[Termination "Michaelson_11 won by checkmate"]

1. e4 {[%clk 0:02:48.7]} 1... e6 {[%clk 0:02:52.5]} 2. d4 {[%clk 0:02:48.2]}
2... d5 {[%clk 0:02:53.4]} 3. Nd2 {[%clk 0:02:48]} 3... Nc6 {[%clk 0:02:44.1]}
4. Ngf3 {[%clk 0:02:47.2]} 4... Nf6 {[%clk 0:02:41.5]} 5. e5 {[%clk 0:02:47.4]}
5... Nd7 {[%clk 0:02:38.2]} 6. Nb3 {[%clk 0:02:47.4]} 6... a5 {[%clk 0:02:31.9]}
7. a4 {[%clk 0:02:47.4]} 7... Be7 {[%clk 0:02:28.8]} 8. c3 {[%clk 0:02:45.6]}
8... O-O {[%clk 0:02:27.9]} 9. Bd3 {[%clk 0:02:39.2]} 9... f6 {[%clk 0:02:21.1]}
10. exf6 {[%clk 0:02:34.3]} 10... Nxf6 {[%clk 0:02:17.7]} 11. O-O {[%clk
0:02:25.8]} 11... Bd6 {[%clk 0:02:03.3]} 12. Bg5 {[%clk 0:02:24.5]} 12... e5
{[%clk 0:01:57.3]} 13. dxe5 {[%clk 0:02:15]} 13... Nxe5 {[%clk 0:01:54.6]} 14.
Nxe5 {[%clk 0:02:08.8]} 14... Bxe5 {[%clk 0:01:46.6]} 15. Bh4 {[%clk 0:01:47.4]}
15... Qd6 {[%clk 0:01:26.8]} 16. Bg3 {[%clk 0:01:45.2]} 16... Ng4 {[%clk
0:01:19.6]} 17. f4 {[%clk 0:01:32]} 17... Bxf4 {[%clk 0:01:05.3]} 18. Bxf4
{[%clk 0:01:25.8]} 18... Rxf4 {[%clk 0:01:00.9]} 19. Rxf4 {[%clk 0:01:07.4]}
19... Qxf4 {[%clk 0:00:52.3]} 20. Qf3 {[%clk 0:01:03.5]} 20... Qxh2+ {[%clk
0:00:44.1]} 21. Kf1 {[%clk 0:01:03.7]} 21... Be6 {[%clk 0:00:37.2]} 22. Ke2
{[%clk 0:01:02.6]} 22... Rf8 {[%clk 0:00:31.8]} 23. Qh3 {[%clk 0:00:59.8]} 23...
Rf2+ {[%clk 0:00:29.4]} 24. Kd1 {[%clk 0:00:52.1]} 24... Qg1+ {[%clk 0:00:28.3]}
25. Bf1 {[%clk 0:00:50.6]} 25... Qxf1# {[%clk 0:00:27.1]} 0-1

[Event "*** Titled Tuesday Blitz"]
[Site "Chess.com"]
[Date "2021.03.02"]
[Round "8"]
[White "jordanasoul"]
[Black "VladimirBugayev"]
[Result "0-1"]
[WhiteElo "2136"]
[BlackElo "2292"]
[TimeControl "180+1"]
[EndTime "11:28:32 PST"]
[Termination "VladimirBugayev won by resignation"]

1. e4 {[%clk 0:03:00.9]} 1... c6 {[%clk 0:02:59]} 2. d4 {[%clk 0:02:59.3]} 2...
d5 {[%clk 0:02:59.3]} 3. Nc3 {[%clk 0:02:55.6]} 3... dxe4 {[%clk 0:02:58.8]} 4.
Nxe4 {[%clk 0:02:54.5]} 4... Nf6 {[%clk 0:02:59.5]} 5. Ng3 {[%clk 0:02:37.6]}
5... h5 {[%clk 0:02:57.1]} 6. h4 {[%clk 0:02:34.9]} 6... Bg4 {[%clk 0:02:54.7]}
7. Nf3 {[%clk 0:02:33.3]} 7... g6 {[%clk 0:02:46.7]} 8. Be2 {[%clk 0:02:32.7]}
8... Bxf3 {[%clk 0:02:40.5]} 9. Bxf3 {[%clk 0:02:31.6]} 9... e6 {[%clk 0:02:41]}
10. Bg5 {[%clk 0:02:30.2]} 10... Nbd7 {[%clk 0:02:41.2]} 11. Qd2 {[%clk
0:02:28.4]} 11... Qb6 {[%clk 0:02:27.6]} 12. O-O {[%clk 0:02:25.7]} 12... Bg7
{[%clk 0:02:11.1]} 13. c3 {[%clk 0:02:22.4]} 13... O-O {[%clk 0:02:10.6]} 14. b4
{[%clk 0:02:13.2]} 14... a5 {[%clk 0:02:02.7]} 15. a3 {[%clk 0:02:09.4]} 15...
axb4 {[%clk 0:01:59.7]} 16. axb4 {[%clk 0:02:07]} 16... Qb5 {[%clk 0:01:48.4]}
17. Be2 {[%clk 0:01:58.2]} 17... Qd5 {[%clk 0:01:42.1]} 18. c4 {[%clk
0:01:52.5]} 18... Qd6 {[%clk 0:01:39.1]} 19. Bf4 {[%clk 0:01:50.6]} 19... Qe7
{[%clk 0:01:39]} 20. Bf3 {[%clk 0:01:48]} 20... Rfd8 {[%clk 0:01:32.5]} 21. b5
{[%clk 0:01:42.4]} 21... Rxa1 {[%clk 0:01:06.5]} 22. Rxa1 {[%clk 0:01:40.1]}
22... e5 {[%clk 0:00:53.8]} 23. Re1 {[%clk 0:01:24.4]} 23... Qd6 {[%clk
0:00:53.2]} 24. bxc6 {[%clk 0:01:19.9]} 24... exf4 {[%clk 0:00:47.6]} 25. cxd7
{[%clk 0:01:10.5]} 25... fxg3 {[%clk 0:00:47.3]} 26. Bxb7 {[%clk 0:00:50]} 26...
gxf2+ {[%clk 0:00:43.5]} 27. Qxf2 {[%clk 0:00:48.3]} 27... Rxd7 {[%clk
0:00:43.6]} 0-1

[Event "*** Titled Tuesday Blitz"]
[Site "Chess.com"]
[Date "2021.03.02"]
[Round "8"]
[White "Yaryi_sergey"]
[Black "Sjakkerntobi"]
[Result "1/2-1/2"]
[WhiteElo "2481"]
[BlackElo "2343"]
[TimeControl "180+1"]
[EndTime "11:28:33 PST"]
[Termination "Game drawn by repetition"]

1. e4 {[%clk 0:00:13.4]} 1... e6 {[%clk 0:02:58.7]} 2. Nf3 {[%clk 0:00:09.6]}
2... d5 {[%clk 0:02:59.6]} 3. d3 {[%clk 0:00:09.4]} 3... Nf6 {[%clk 0:02:58.4]}
4. e5 {[%clk 0:00:09.4]} 4... Nfd7 {[%clk 0:02:58.3]} 5. d4 {[%clk 0:00:09.3]}
5... c5 {[%clk 0:02:58.7]} 6. c3 {[%clk 0:00:09.5]} 6... Nc6 {[%clk 0:02:59.3]}
7. dxc5 {[%clk 0:00:09.2]} 7... Bxc5 {[%clk 0:02:58.8]} 8. Bf4 {[%clk
0:00:09.1]} 8... Qb6 {[%clk 0:02:56.8]} 9. Qd2 {[%clk 0:00:08.3]} 9... a5 {[%clk
0:02:56.7]} 10. Bd3 {[%clk 0:00:07.3]} 10... Qc7 {[%clk 0:02:53.2]} 11. Qe2
{[%clk 0:00:06.3]} 11... h6 {[%clk 0:02:48]} 12. h4 {[%clk 0:00:06]} 12... a4
{[%clk 0:02:42.9]} 13. Nbd2 {[%clk 0:00:06.1]} 13... d4 {[%clk 0:02:40.2]} 14.
Ne4 {[%clk 0:00:05.7]} 14... Be7 {[%clk 0:02:37.6]} 15. cxd4 {[%clk 0:00:05.3]}
15... Nb4 {[%clk 0:02:38.2]} 16. O-O {[%clk 0:00:04.8]} 16... Nxd3 {[%clk
0:02:37.9]} 17. Qxd3 {[%clk 0:00:04.8]} 17... b6 {[%clk 0:02:38.8]} 18. Rac1
{[%clk 0:00:04.8]} 18... Qb8 {[%clk 0:02:39.5]} 19. Nd6+ {[%clk 0:00:04.7]}
19... Bxd6 {[%clk 0:02:39.1]} 20. exd6 {[%clk 0:00:05.3]} 20... Ba6 {[%clk
0:02:39.8]} 21. Qe4 {[%clk 0:00:04.5]} 21... Bxf1 {[%clk 0:02:39.9]} 22. Kxf1
{[%clk 0:00:04.7]} 22... O-O {[%clk 0:02:39.3]} 23. Rc7 {[%clk 0:00:04.7]} 23...
Nf6 {[%clk 0:02:39.2]} 24. Qe5 {[%clk 0:00:04.8]} 24... Ra5 {[%clk 0:02:35.8]}
25. Qe3 {[%clk 0:00:04]} 25... Nd5 {[%clk 0:02:34.9]} 26. Qc1 {[%clk 0:00:04.1]}
26... Nxc7 {[%clk 0:02:34.2]} 27. dxc7 {[%clk 0:00:03.9]} 27... Qc8 {[%clk
0:02:29.4]} 28. Ne5 {[%clk 0:00:03.8]} 28... Qb7 {[%clk 0:02:18.4]} 29. Nc6
{[%clk 0:00:03.3]} 29... Raa8 {[%clk 0:02:09.9]} 30. Bxh6 {[%clk 0:00:02.8]}
30... Rfe8 {[%clk 0:02:05.9]} 31. Bxg7 {[%clk 0:00:02.3]} 31... Kxg7 {[%clk
0:01:48]} 32. Qg5+ {[%clk 0:00:01.8]} 32... Kh7 {[%clk 0:01:47.9]} 33. Qh5+
{[%clk 0:00:01.7]} 33... Kg8 {[%clk 0:01:47.3]} 34. Qg5+ {[%clk 0:00:02.1]}
34... Kh8 {[%clk 0:01:47.3]} 35. Qh5+ {[%clk 0:00:02.4]} 35... Kg7 {[%clk
0:01:46.8]} 36. Qg5+ {[%clk 0:00:02.4]} 36... Kf8 {[%clk 0:01:47.3]} 37. Qh6+
{[%clk 0:00:02.7]} 37... Kg8 {[%clk 0:01:47.7]} 38. Qg5+ {[%clk 0:00:03.2]}
38... Kh7 {[%clk 0:01:48]} 39. Qh5+ {[%clk 0:00:03.5]} 39... Kg7 {[%clk
0:01:47.7]} 40. Qg5+ {[%clk 0:00:03.8]} 1/2-1/2

[Event "*** Titled Tuesday Blitz"]
[Site "Chess.com"]
[Date "2021.03.02"]
[Round "8"]
[White "GoltsevDmitry2000"]
[Black "CSB7"]
[Result "1-0"]
[WhiteElo "2742"]
[BlackElo "2581"]
[TimeControl "180+1"]
[EndTime "11:28:46 PST"]
[Termination "GoltsevDmitry2000 won on time"]

1. e4 {[%clk 0:03:00]} 1... c5 {[%clk 0:02:59.8]} 2. Nf3 {[%clk 0:03:00.6]} 2...
d6 {[%clk 0:02:59.8]} 3. d4 {[%clk 0:03:01.2]} 3... cxd4 {[%clk 0:03:00.7]} 4.
Nxd4 {[%clk 0:03:02]} 4... Nf6 {[%clk 0:03:01.3]} 5. Nc3 {[%clk 0:03:02.5]} 5...
a6 {[%clk 0:03:01.8]} 6. Be2 {[%clk 0:03:03]} 6... e5 {[%clk 0:03:00.8]} 7. Nb3
{[%clk 0:03:02.9]} 7... Be6 {[%clk 0:02:58.9]} 8. O-O {[%clk 0:03:01.9]} 8...
Nbd7 {[%clk 0:02:57.8]} 9. f4 {[%clk 0:03:02.4]} 9... Rc8 {[%clk 0:02:54.4]} 10.
f5 {[%clk 0:03:02.4]} 10... Bc4 {[%clk 0:02:53.9]} 11. Be3 {[%clk 0:03:02.6]}
11... Be7 {[%clk 0:02:44.5]} 12. Qd2 {[%clk 0:03:00.7]} 12... O-O {[%clk
0:02:41.3]} 13. h3 {[%clk 0:02:59.6]} 13... d5 {[%clk 0:02:06.8]} 14. exd5
{[%clk 0:02:49.8]} 14... Bb4 {[%clk 0:02:07]} 15. Bxc4 {[%clk 0:02:41.3]} 15...
Rxc4 {[%clk 0:02:07.9]} 16. Qd3 {[%clk 0:02:40.7]} 16... Qc7 {[%clk 0:01:55.2]}
17. Nd2 {[%clk 0:02:30.9]} 17... Rh4 {[%clk 0:01:41.5]} 18. Rad1 {[%clk
0:02:24.4]} 18... Bxc3 {[%clk 0:01:24.8]} 19. bxc3 {[%clk 0:02:25.3]} 19... e4
{[%clk 0:01:17.7]} 20. Qd4 {[%clk 0:02:22.8]} 20... Rxh3 {[%clk 0:01:11.2]} 21.
Bf4 {[%clk 0:02:19.1]} 21... Qxc3 {[%clk 0:01:10.4]} 22. Nxe4 {[%clk 0:02:11.1]}
22... Qxd4+ {[%clk 0:01:00]} 23. Rxd4 {[%clk 0:02:12]} 23... Rh5 {[%clk
0:00:40.4]} 24. Ng3 {[%clk 0:02:08]} 24... Rh4 {[%clk 0:00:37.9]} 25. c4 {[%clk
0:02:08.3]} 25... Rc8 {[%clk 0:00:31.6]} 26. d6 {[%clk 0:02:07.5]} 26... b5
{[%clk 0:00:21.5]} 27. cxb5 {[%clk 0:02:06.5]} 27... axb5 {[%clk 0:00:22.4]} 28.
Rb1 {[%clk 0:02:04.3]} 28... g5 {[%clk 0:00:12.2]} 29. fxg6 {[%clk 0:02:03.7]}
29... hxg6 {[%clk 0:00:11.8]} 30. Rxb5 {[%clk 0:02:04.1]} 30... Rc2 {[%clk
0:00:10.8]} 31. a4 {[%clk 0:02:02.1]} 31... Ra2 {[%clk 0:00:08]} 32. a5 {[%clk
0:02:00.9]} 32... Rg4 {[%clk 0:00:08.5]} 33. Rdb4 {[%clk 0:01:49]} 33... Kh7
{[%clk 0:00:05.4]} 34. Kf1 {[%clk 0:01:33]} 34... Nf8 {[%clk 0:00:02.5]} 35. Ne2
{[%clk 0:01:32.5]} 35... Ne6 {[%clk 0:00:01.4]} 36. Be3 {[%clk 0:01:32.5]} 36...
Rxb4 {[%clk 0:00:01.7]} 37. Rxb4 {[%clk 0:01:33.4]} 1-0

[Event "*** Titled Tuesday Blitz"]
[Site "Chess.com"]
[Date "2021.03.02"]
[Round "8"]
[White "politeplayer"]
[Black "Joseacorrea"]
[Result "1-0"]
[WhiteElo "2226"]
[BlackElo "2073"]
[TimeControl "180+1"]
[EndTime "11:28:48 PST"]
[Termination "politeplayer won on time"]

1. e4 {[%clk 0:03:00.9]} 1... c5 {[%clk 0:02:59.1]} 2. c3 {[%clk 0:03:00.8]}
2... d5 {[%clk 0:02:58.2]} 3. exd5 {[%clk 0:03:00.7]} 3... Qxd5 {[%clk
0:02:58.8]} 4. d4 {[%clk 0:03:01.2]} 4... Nf6 {[%clk 0:02:58.5]} 5. Nf3 {[%clk
0:03:01.6]} 5... Nc6 {[%clk 0:02:56.2]} 6. dxc5 {[%clk 0:02:59.2]} 6... Qxd1+
{[%clk 0:02:52.3]} 7. Kxd1 {[%clk 0:02:59.1]} 7... Ne4 {[%clk 0:02:52.9]} 8. Be3
{[%clk 0:02:56.3]} 8... Bg4 {[%clk 0:02:47.7]} 9. b4 {[%clk 0:02:38.9]} 9...
Rd8+ {[%clk 0:02:38.8]} 10. Kc2 {[%clk 0:02:37.9]} 10... e6 {[%clk 0:02:16.1]}
11. Nd4 {[%clk 0:02:32]} 11... Nxd4+ {[%clk 0:02:07.4]} 12. cxd4 {[%clk
0:02:30.7]} 12... Bf5 {[%clk 0:02:07.9]} 13. Bd3 {[%clk 0:02:27.2]} 13... e5
{[%clk 0:01:53.6]} 14. f3 {[%clk 0:02:08.1]} 14... exd4 {[%clk 0:00:50.7]} 15.
fxe4 {[%clk 0:02:06.1]} 15... Bg6 {[%clk 0:00:44.7]} 16. Bf4 {[%clk 0:01:48.2]}
16... Be7 {[%clk 0:00:41.2]} 17. Bb5+ {[%clk 0:01:46.2]} 17... Kf8 {[%clk
0:00:39.4]} 18. Nd2 {[%clk 0:01:42.3]} 18... a6 {[%clk 0:00:36.9]} 19. Bd3
{[%clk 0:01:40.2]} 19... a5 {[%clk 0:00:30.5]} 20. a3 {[%clk 0:01:37.9]} 20...
h6 {[%clk 0:00:21]} 21. Nc4 {[%clk 0:01:33.8]} 21... axb4 {[%clk 0:00:12.7]} 22.
axb4 {[%clk 0:01:33.4]} 22... Bg5 {[%clk 0:00:13.6]} 23. Bd6+ {[%clk 0:01:29.2]}
23... Be7 {[%clk 0:00:12.5]} 24. Rhf1 {[%clk 0:01:17.6]} 24... b5 {[%clk
0:00:08.3]} 25. Ra7 {[%clk 0:01:06.2]} 25... bxc4 {[%clk 0:00:03.4]} 26. Bxe7+
{[%clk 0:01:05.7]} 26... Ke8 {[%clk 0:00:03.6]} 27. Bxd8 {[%clk 0:01:02.4]}
27... cxd3+ {[%clk 0:00:03.5]} 28. Kxd3 {[%clk 0:01:02.8]} 1-0